fUST/lending_fUST_20240417
["ID","MTS","AMOUNT","RATE_DAILY","PERIOD"]
[322805923,1713337848104,-3000.0,0.0003787,33]
[322805924,1713337848113,-3000.0,0.0003788,33]
[322805925,1713337848122,-3000.0,0.0003789,33]
[322805926,1713337848131,-3110.029123,0.000379,33]
[322805927,1713337848141,-602.21342481,0.0004,4]
[322805928,1713337848150,-1062.53549657,0.00041,4]
[322805929,1713337848159,-1144.52130462,0.00041095,120]
[322805930,1713337848169,-1000.0,0.00041095,120]
[322805931,1713337848178,-162.375864,0.00041096,2]
[322805932,1713337848187,-1000.0,0.00042001,120]
[322805933,1713337848196,-8531.62297078,0.00045,120]
[322805934,1713337848205,-168.247331,0.00045662,2]
[322805935,1713337848216,-232630.30719341,0.00045842,7]
[322805936,1713337848226,-4740.85037177,0.00045842,2]
[322805937,1713337848236,-2728.65239884,0.00045842,5]
[322805938,1713337848245,-160.19756179,0.00045842,30]
[322805939,1713337848255,-500.0,0.00045842,2]
[322805940,1713337848265,-181.27172077,0.00045842,4]
[322805941,1713337848276,-151.0,0.00045842,7]
[322805942,1713337848287,-151.0,0.00045842,7]
[322805943,1713337848296,-151.0,0.00045842,7]
[322805944,1713337848306,-1673.517292,0.00045842,7]
[322805945,1713337848316,-1673.517292,0.00045842,7]
[322805946,1713337848326,-151.0,0.00045842,7]
[322805947,1713337848336,-151.0,0.00045842,7]
[322805948,1713337848346,-622.011097,0.00045842,7]
[322805949,1713337848357,-622.011097,0.00045842,7]
[322805950,1713337848368,-557.837551,0.00045842,7]
[322805951,1713337848378,-700.513654,0.00045842,7]
[322805952,1713337848388,-557.837551,0.00045842,7]
[322805953,1713337848397,-700.513654,0.00045842,7]
[322805954,1713337848408,-151.0,0.00045842,7]
[322805955,1713337848418,-151.0,0.00045842,7]
[322805956,1713337848427,-151.0,0.00045842,7]
[322805957,1713337848438,-4511.721143,0.00045842,7]
[322805958,1713337848449,-4511.721143,0.00045842,7]
[322805959,1713337848461,-151.0,0.00045842,7]
[322805960,1713337848472,-1057.456144,0.00045842,7]
[322805961,1713337848481,-1057.456144,0.00045842,7]
[322805962,1713337848489,-1240.111605,0.00045842,7]
[322805963,1713337848498,-1240.111605,0.00045842,7]
[322805964,1713337848507,-152.874669,0.00045842,7]
[322805965,1713337848519,-279.830414,0.00045842,7]
[322805966,1713337848528,-151.0,0.00045842,7]
[322805967,1713337848537,-279.830414,0.00045842,7]
[322805968,1713337848546,-168.231395,0.00045842,7]
[322805969,1713337848556,-151.0,0.00045842,7]
[322805970,1713337848566,-151.0,0.00045842,7]
[322805971,1713337848575,-151.0,0.00045842,7]
[322805972,1713337848585,-154.86062544,0.000459,4]
[322805973,1713337848595,-162.375864,0.00047945,2]
[322805974,1713337848604,-1000.0,0.0004818,120]
[322805975,1713337848614,-3378.95802152,0.00049,120]
[322805976,1713337848626,-154.86062544,0.0005,30]
[322805977,1713337848636,-251.54746317,0.0005,120]
[322805978,1713337848645,-3000.0,0.00051,85]
[322805979,1713337848655,-3000.0,0.0005101,85]
[322805980,1713337848664,-3000.0,0.0005102,85]
[322805981,1713337848674,-3000.0,0.0005103,85]
[322805982,1713337848683,-3000.0,0.0005104,85]
[322805983,1713337848692,-3000.0,0.0005105,85]
[322805984,1713337848701,-3000.0,0.0005106,85]
[322805985,1713337848710,-5889.970877,0.0005107,85]
[322805986,1713337848720,-207.1899349,0.00053878,2]
[322805987,1713337848729,-153.0,0.00053878,2]
[322805988,1713337848739,-153.0,0.00053878,2]
[322805989,1713337848748,-153.0,0.00053878,2]
[322805990,1713337848757,-153.0,0.00053878,2]
[322805991,1713337848766,-153.0,0.00053878,2]
[322805992,1713337848775,-153.0,0.00053878,2]
[322805993,1713337848784,-153.0,0.00053878,2]
[322805994,1713337848794,-153.0,0.00053878,2]
[322805995,1713337848803,-153.0,0.00053878,2]
[322805996,1713337848812,-153.0,0.00053878,2]
[322805997,1713337848821,-153.0,0.00053878,2]
[322805998,1713337848830,-153.0,0.00053878,2]
[322805999,1713337848839,-153.0,0.00053878,2]
[322806000,1713337848847,-153.0,0.00053878,2]
[322806001,1713337848856,-153.0,0.00053878,2]
[322806002,1713337848865,-153.0,0.00053878,2]
[322806003,1713337848874,-153.0,0.00053878,2]
[322806004,1713337848883,-153.0,0.00053878,2]
[322806005,1713337848892,-153.0,0.00053878,2]
[322806006,1713337848902,-153.0,0.00053878,2]
[322806007,1713337848915,-153.0,0.00053878,2]
[322806008,1713337848924,-153.0,0.00053878,2]
[322806009,1713337848936,-153.0,0.00053878,2]
[322806010,1713337848946,-153.0,0.00053878,2]
[322806011,1713337848957,-153.0,0.00053878,2]
[322806012,1713337848966,-153.0,0.00053878,2]
[322806013,1713337848978,-153.0,0.00053878,2]
[322806014,1713337848988,-153.0,0.00053878,2]
[322806015,1713337848997,-153.0,0.00053878,2]
[322806016,1713337849007,-153.0,0.00053878,2]
[322806017,1713337849017,-1000.0,0.00054408,120]
[322806018,1713337849025,-217.69122868,0.00054794,120]
[322806019,1713337849034,-548.35605247,0.00054794,120]
[322806020,1713337849043,-500.0,0.00054794,120]
[322806021,1713337849054,-510.70962246,0.00054794,120]
[322806022,1713337849064,-500.0,0.00054794,120]
[322806023,1713337849073,-500.0,0.00054794,120]
[322806024,1713337849082,-500.0,0.00054794,120]
[322806025,1713337849090,-500.0,0.00054794,120]
[322806026,1713337849100,-500.0,0.00054794,120]
[322806027,1713337849109,-166.56958904,0.00054794,120]
[322806028,1713337849118,-500.0,0.00054794,120]
[322806029,1713337849126,-500.0,0.00054794,120]
[322806030,1713337849136,-500.0,0.00054794,120]
[322806031,1713337849147,-363.88780378,0.00054794,120]
[322806032,1713337849156,-503.86932707,0.00054794,120]
[322806033,1713337849165,-500.0,0.00054794,120]
[322806034,1713337849173,-500.0,0.00054794,120]
[322806035,1713337849183,-500.0,0.00054794,120]
[322806036,1713337849191,-500.0,0.00054794,120]
[322806037,1713337849200,-500.0,0.00054794,120]
[322806038,1713337849209,-500.0,0.00054794,120]
[322806039,1713337849218,-500.0,0.00054794,120]
[322806040,1713337849228,-575.86582501,0.00054794,120]
[322806041,1713337849236,-493.47882355,0.00054794,120]
[322806042,1713337849246,-502.33063945,0.00054794,120]
[322806043,1713337849255,-500.0,0.00054794,120]
[322806044,1713337849264,-264.34020531,0.00054794,120]
[322806045,1713337849273,-500.0,0.00054794,120]
[322806046,1713337849282,-503.71120124,0.00054794,120]
[322806047,1713337849291,-500.0,0.00054794,120]
[322806048,1713337849301,-500.0,0.00054794,120]
[322806049,1713337849311,-500.0,0.00054794,120]
[322806050,1713337849321,-506.82077841,0.00054794,120]
[322806051,1713337849331,-500.0,0.00054794,120]
[322806052,1713337849340,-501.28054168,0.00054794,120]
[322806053,1713337849349,-500.0,0.00054794,120]
[322806054,1713337849359,-500.0,0.00054794,120]
[322806055,1713337849368,-500.0,0.00054794,120]
[322806056,1713337849378,-500.0,0.00054794,120]
[322806057,1713337849387,-500.0,0.00054794,120]
[322806058,1713337849396,-500.0,0.00054794,120]
[322806059,1713337849405,-500.0,0.00054794,120]
[322806060,1713337849414,-500.0,0.00054794,120]
[322806061,1713337849423,-500.0,0.00054794,120]
[322806062,1713337849433,-500.0,0.00054794,120]
[322806063,1713337849442,-500.0,0.00054794,120]
[322806064,1713337849451,-500.0,0.00054794,120]
[322806065,1713337849459,-501.20520564,0.00054794,120]
[322806066,1713337849467,-500.0,0.00054794,120]
[322806067,1713337849478,-501.55790209,0.00054794,120]
[322806068,1713337849487,-500.0,0.00054794,120]
[322806069,1713337849496,-500.0,0.00054794,120]
[322806070,1713337849505,-500.0,0.00054794,120]
[322806071,1713337849514,-308.67104345,0.00054794,120]
[322806072,1713337849523,-500.0,0.00054794,120]
[322806073,1713337849532,-500.0,0.00054794,120]
[322806074,1713337849541,-500.0,0.00054794,120]
[322806075,1713337849550,-504.03863375,0.00054794,120]
[322806076,1713337849559,-500.0,0.00054794,120]
[322806077,1713337849568,-502.43231226,0.00054794,120]
[322806078,1713337849577,-500.0,0.00054794,120]
[322806079,1713337849586,-163.02930617,0.00054794,120]
[322806080,1713337849594,-500.0,0.00054794,120]
[322806081,1713337849604,-500.0,0.00054794,120]
[322806082,1713337849613,-500.0,0.00054794,120]
[322806083,1713337849622,-519.4921322,0.00054794,120]
[322806084,1713337849631,-500.0,0.00054794,120]
[322806085,1713337849639,-634.16003425,0.00054794,120]
[322806086,1713337849648,-500.0,0.00054794,120]
[322806087,1713337849657,-529.16344924,0.00054794,120]
[322806088,1713337849666,-500.0,0.00054794,120]
[322806089,1713337849675,-501.71568492,0.00054794,120]
[322806090,1713337849684,-500.0,0.00054794,120]
[322806091,1713337849693,-500.0,0.00054794,120]
[322806092,1713337849703,-500.0,0.00054794,120]
[322806093,1713337849712,-500.0,0.00054794,120]
[322806094,1713337849722,-500.0,0.00054794,120]
[322806095,1713337849731,-500.0,0.00054794,120]
[322806096,1713337849740,-500.0,0.00054794,120]
[322806097,1713337849750,-500.0,0.00054794,120]
[322806098,1713337849759,-519.0076548,0.00054794,120]
[322806099,1713337849768,-500.0,0.00054794,120]
[322806100,1713337849777,-1000.0,0.00054794,120]
[322806101,1713337849785,-500.0,0.00054794,120]
[322806102,1713337849794,-500.0,0.00054794,120]
[322806103,1713337849803,-500.0,0.00054794,120]
[322806104,1713337849812,-311.8101111,0.00054794,120]
[322806105,1713337849821,-511.25206593,0.00054794,120]
[322806106,1713337849830,-1403.52,0.00054794,120]
[322806107,1713337849839,-500.0,0.00054794,120]
[322806108,1713337849848,-500.0,0.00054794,120]
[322806109,1713337849857,-500.0,0.00054794,120]
[322806110,1713337849866,-4112.21,0.00054794,120]
[322806111,1713337849875,-500.0,0.00054794,120]
[322806112,1713337849885,-228.83119818,0.00054794,120]
[322806113,1713337849893,-500.0,0.00054794,120]
[322806114,1713337849902,-500.0,0.00054794,120]
[322806115,1713337849911,-500.0,0.00054794,120]
[322806116,1713337849920,-505.40427964,0.00054794,120]
[322806117,1713337849929,-500.0,0.00054794,120]
[322806118,1713337849938,-499.56705813,0.00054794,120]
[322806119,1713337849947,-500.0,0.00054794,120]
[322806120,1713337849956,-500.0,0.00054794,120]
[322806121,1713337849965,-500.0,0.00054794,120]
[322806122,1713337849975,-508.18248448,0.00054794,120]
[322806123,1713337849984,-500.0,0.00054794,120]
[322806124,1713337849993,-510.59397441,0.00054794,120]
[322806125,1713337850002,-500.0,0.00054794,120]
[322806126,1713337850012,-151.0,0.00054794,7]
[322806127,1713337850021,-151.0,0.00054794,7]
[322806128,1713337850031,-500.0,0.00054794,120]
[322806129,1713337850040,-500.0,0.00054794,120]
[322806130,1713337850050,-500.0,0.00054794,120]
[322806131,1713337850059,-399.3831436,0.00054794,120]
[322806132,1713337850073,-500.0,0.00054794,120]
[322806133,1713337850082,-500.69815869,0.00054794,120]
[322806134,1713337850092,-500.0,0.00054794,120]
[322806135,1713337850101,-500.0,0.00054794,120]
[322806136,1713337850110,-458.80833778,0.00054794,120]
[322806137,1713337850119,-501.37976354,0.00054794,120]
[322806138,1713337850229,-500.0,0.00054794,120]
[322806139,1713337850238,-500.0,0.00054794,120]
[322806140,1713337850247,-151.0,0.00054794,7]
[322806141,1713337850256,-151.0,0.00054794,7]
[322806142,1713337850265,-500.0,0.00054794,120]
[322806143,1713337850273,-151.0,0.00054794,7]
[322806144,1713337850282,-151.0,0.00054794,7]
[322806145,1713337850291,-500.0,0.00054794,120]
[322806146,1713337850300,-180.24499226,0.00054794,120]
[322806147,1713337850308,-500.0,0.00054794,120]
[322806148,1713337850317,-500.0,0.00054794,120]
[322806149,1713337850327,-500.0,0.00054794,120]
[322806150,1713337850337,-500.0,0.00054794,120]
[322806151,1713337850346,-1673.517292,0.00054794,7]
[322806152,1713337850355,-1673.517292,0.00054794,7]
[322806153,1713337850365,-500.0,0.00054794,120]
[322806154,1713337850374,-500.0,0.00054794,120]
[322806155,1713337850383,-1673.517292,0.00054794,7]
[322806156,1713337850392,-1673.517292,0.00054794,7]
[322806157,1713337850401,-511.52574006,0.00054794,120]
[322806158,1713337850411,-500.0,0.00054794,120]
[322806159,1713337850420,-500.0,0.00054794,120]
[322806160,1713337850430,-182.85817083,0.00054794,120]
[322806161,1713337850439,-500.0,0.00054794,7]
[322806162,1713337850448,-500.0,0.00054794,120]
[322806163,1713337850457,-527.07710566,0.00054794,120]
[322806164,1713337850466,-151.0,0.00054794,7]
[322806165,1713337850477,-151.0,0.00054794,7]
[322806166,1713337850487,-500.0,0.00054794,120]
[322806167,1713337850496,-500.0,0.00054794,120]
[322806168,1713337850506,-500.0,0.00054794,120]
[322806169,1713337850515,-500.0,0.00054794,120]
[322806170,1713337850524,-500.0,0.00054794,120]
[322806171,1713337850534,-622.011097,0.00054794,7]
[322806172,1713337850543,-622.011097,0.00054794,7]
[322806173,1713337850553,-500.0,0.00054794,120]
[322806174,1713337850562,-622.011097,0.00054794,7]
[322806175,1713337850571,-260.54925915,0.00054794,120]
[322806176,1713337850581,-622.011097,0.00054794,7]
[322806177,1713337850590,-500.0,0.00054794,120]
[322806178,1713337850599,-500.0,0.00054794,120]
[322806179,1713337850608,-500.0,0.00054794,120]
[322806180,1713337850617,-500.0,0.00054794,120]
[322806181,1713337850626,-624.29427871,0.00054794,120]
[322806182,1713337850635,-500.0,0.00054794,120]
[322806183,1713337850644,-506.44626288,0.00054794,120]
[322806184,1713337850653,-500.0,0.00054794,120]
[322806185,1713337850662,-500.0,0.00054794,120]
[322806186,1713337850671,-500.0,0.00054794,120]
[322806187,1713337850680,-500.0,0.00054794,120]
[322806188,1713337850690,-541.79929284,0.00054794,120]
[322806189,1713337850699,-461.30405867,0.00054794,120]
[322806190,1713337850709,-500.0,0.00054794,120]
[322806191,1713337850718,-500.0,0.00054794,120]
[322806192,1713337850729,-500.0,0.00054794,120]
[322806193,1713337850737,-500.0,0.00054794,120]
[322806194,1713337850746,-508.90555875,0.00054794,120]
[322806195,1713337850756,-557.837551,0.00054794,7]
[322806196,1713337850765,-700.513654,0.00054794,7]
[322806197,1713337850774,-700.513654,0.00054794,7]
[322806198,1713337850783,-557.837551,0.00054794,7]
[322806199,1713337850792,-500.0,0.00054794,120]
[322806200,1713337850802,-500.0,0.00054794,120]
[322806201,1713337850812,-557.837551,0.00054794,7]
[322806202,1713337850821,-557.837551,0.00054794,7]
[322806203,1713337850831,-700.513654,0.00054794,7]
[322806204,1713337850840,-700.513654,0.00054794,7]
[322806205,1713337850849,-500.0,0.00054794,120]
[322806206,1713337850858,-505.04068357,0.00054794,120]
[322806207,1713337850867,-500.0,0.00054794,120]
[322806208,1713337850877,-947.88,0.00054794,120]
[322806209,1713337850886,-500.0,0.00054794,120]
[322806210,1713337850895,-500.0,0.00054794,120]
[322806211,1713337850904,-500.0,0.00054794,120]
[322806212,1713337850913,-500.0,0.00054794,120]
[322806213,1713337850922,-500.0,0.00054794,120]
[322806214,1713337850931,-151.0,0.00054794,7]
[322806215,1713337850940,-504.03559648,0.00054794,120]
[322806216,1713337850950,-500.0,0.00054794,120]
[322806217,1713337850959,-151.0,0.00054794,7]
[322806218,1713337850968,-500.0,0.00054794,120]
[322806219,1713337850979,-500.0,0.00054794,120]
[322806220,1713337850987,-500.0,0.00054794,120]
[322806221,1713337850996,-500.0,0.00054794,120]
[322806222,1713337851005,-501.92222731,0.00054794,120]
[322806223,1713337851014,-524.62,0.00054794,120]
[322806224,1713337851023,-503.60892901,0.00054794,120]
[322806225,1713337851032,-500.0,0.00054794,120]
[322806226,1713337851041,-500.0,0.00054794,120]
[322806227,1713337851051,-151.0,0.00054794,7]
[322806228,1713337851064,-151.0,0.00054794,7]
[322806229,1713337851073,-500.0,0.00054794,120]
[322806230,1713337851082,-263.91234,0.00054794,7]
[322806231,1713337851091,-500.0,0.00054794,120]
[322806232,1713337851101,-15160.81,0.00054794,120]
[322806233,1713337851110,-500.0,0.00054794,120]
[322806234,1713337851119,-500.0,0.00054794,120]
[322806235,1713337851128,-500.0,0.00054794,120]
[322806236,1713337851138,-500.0,0.00054794,120]
[322806237,1713337851149,-500.0,0.00054794,120]
[322806238,1713337851158,-500.0,0.00054794,7]
[322806239,1713337851167,-4511.721143,0.00054794,7]
[322806240,1713337851176,-4511.721143,0.00054794,7]
[322806241,1713337851185,-4511.721143,0.00054794,7]
[322806242,1713337851194,-500.0,0.00054794,120]
[322806243,1713337851203,-4511.721143,0.00054794,7]
[322806244,1713337851213,-500.0,0.00054794,120]
[322806245,1713337851222,-500.0,0.00054794,60]
[322806246,1713337851232,-222.69406575,0.00054794,120]
[322806247,1713337851241,-500.0,0.00054794,120]
[322806248,1713337851250,-204.55905913,0.00054794,120]
[322806249,1713337851259,-498.6,0.00054794,120]
[322806250,1713337851268,-11805.15,0.00054794,120]
[322806251,1713337851277,-151.0,0.00054794,7]
[322806252,1713337851286,-151.0,0.00054794,7]
[322806253,1713337851295,-518.71813374,0.00054794,120]
[322806254,1713337851305,-500.0,0.00054794,120]
[322806255,1713337851314,-503.23515163,0.00054794,120]
[322806256,1713337851323,-500.0,0.00054794,120]
[322806257,1713337851333,-500.0,0.00054794,120]
[322806258,1713337851342,-496.91159978,0.00054794,120]
[322806259,1713337851352,-505.48090445,0.00054794,120]
[322806260,1713337851361,-500.0,0.00054794,120]
[322806261,1713337851370,-1057.456144,0.00054794,7]
[322806262,1713337851379,-1057.456144,0.00054794,7]
[322806263,1713337851388,-500.0,0.00054794,120]
[322806264,1713337851398,-500.0,0.00054794,120]
[322806265,1713337851407,-502.61355141,0.00054794,120]
[322806266,1713337851416,-1057.456144,0.00054794,7]
[322806267,1713337851425,-1057.456144,0.00054794,7]
[322806268,1713337851434,-500.0,0.00054794,120]
[322806269,1713337851443,-500.0,0.00054794,120]
[322806270,1713337851453,-2067.76,0.00054794,120]
[322806271,1713337851462,-500.0,0.00054794,120]
[322806272,1713337851473,-500.0,0.00054794,120]
[322806273,1713337851481,-502.38067643,0.00054794,120]
[322806274,1713337851490,-489.01223818,0.00054794,120]
[322806275,1713337851500,-1240.111605,0.00054794,7]
[322806276,1713337851509,-1240.111605,0.00054794,7]
[322806277,1713337851519,-3027.72,0.00054794,120]
[322806278,1713337851528,-1240.111605,0.00054794,7]
[322806279,1713337851537,-1240.111605,0.00054794,7]
[322806280,1713337851546,-500.0,0.00054794,120]
[322806281,1713337851555,-500.0,0.00054794,120]
[322806282,1713337851565,-500.37899537,0.00054794,120]
[322806283,1713337851574,-4276.09,0.00054794,120]
[322806284,1713337851584,-500.0,0.00054794,120]
[322806285,1713337851593,-500.0,0.00054794,120]
[322806286,1713337851602,-279.830414,0.00054794,7]
[322806287,1713337851611,-279.830414,0.00054794,7]
[322806288,1713337851621,-500.0,0.00054794,120]
[322806289,1713337851630,-151.0,0.00054794,7]
[322806290,1713337851639,-151.0,0.00054794,7]
[322806291,1713337851648,-279.830414,0.00054794,7]
[322806292,1713337851658,-279.830414,0.00054794,7]
[322806293,1713337851667,-1174.97,0.00054794,120]
[322806294,1713337851676,-500.0,0.00054794,120]
[322806295,1713337851686,-500.0,0.00054794,120]
[322806296,1713337851695,-1174.97,0.00054794,120]
[322806297,1713337851705,-1174.97,0.00054794,120]
[322806298,1713337851714,-500.0,0.00054794,120]
[322806299,1713337851725,-1174.97,0.00054794,120]
[322806300,1713337851735,-1174.97,0.00054794,120]
[322806301,1713337851745,-1174.97,0.00054794,120]
[322806302,1713337851754,-1174.97,0.00054794,120]
[322806303,1713337851764,-1174.97,0.00054794,120]
[322806304,1713337851773,-1174.97,0.00054794,120]
[322806305,1713337851784,-1174.97,0.00054794,120]
[322806306,1713337851794,-1174.97,0.00054794,120]
[322806307,1713337851803,-1174.97,0.00054794,120]
[322806308,1713337851813,-500.0,0.00054794,120]
[322806309,1713337851823,-1174.97,0.00054794,120]
[322806310,1713337851832,-1174.97,0.00054794,120]
[322806311,1713337851842,-1174.97,0.00054794,120]
[322806312,1713337851854,-1174.97,0.00054794,120]
[322806313,1713337851863,-1174.97,0.00054794,120]
[322806314,1713337851873,-1174.97,0.00054794,120]
[322806315,1713337851883,-500.0,0.00054794,120]
[322806316,1713337851893,-1174.97,0.00054794,120]
[322806317,1713337851904,-1174.97,0.00054794,120]
[322806318,1713337851913,-1174.97,0.00054794,120]
[322806319,1713337851923,-1174.97,0.00054794,120]
[322806320,1713337851932,-1174.97,0.00054794,120]
[322806321,1713337851941,-1175.04477696,0.00054794,120]
[322806322,1713337851950,-500.0,0.00054794,120]
[322806323,1713337851960,-500.0,0.00054794,120]
[322806324,1713337851969,-500.0,0.00054794,120]
[322806325,1713337851980,-151.0,0.00054794,7]
[322806326,1713337851990,-151.0,0.00054794,7]
[322806327,1713337852001,-500.0,0.00054794,120]
[322806328,1713337852010,-500.0,0.00054794,120]
[322806329,1713337852020,-503.65602363,0.00054794,120]
[322806330,1713337852029,-500.0,0.00054794,120]
[322806331,1713337852040,-500.0,0.00054794,120]
[322806332,1713337852049,-500.0,0.00054794,120]
[322806333,1713337852059,-500.0,0.00054794,120]
[322806334,1713337852071,-500.0,0.00054794,120]
[322806335,1713337852080,-500.0,0.00054794,120]
[322806336,1713337852090,-500.0,0.00054794,120]
[322806337,1713337852099,-276.8427483,0.00054794,120]
[322806338,1713337852108,-151.0,0.00054794,7]
[322806339,1713337852119,-151.0,0.00054794,7]
[322806340,1713337852131,-500.0,0.00054794,120]
[322806341,1713337852141,-500.0,0.00054794,120]
[322806342,1713337852154,-500.0,0.00054794,120]
[322806343,1713337852163,-500.0,0.00054794,120]
[322806344,1713337852174,-566.74,0.00054794,120]
[322806345,1713337852183,-534.33601098,0.00054794,120]
[322806346,1713337852193,-502.015372,0.00054794,120]
[322806347,1713337852203,-505.00571182,0.00054794,120]
[322806348,1713337852212,-500.0,0.00054794,120]
[322806349,1713337852224,-500.0,0.00054794,120]
[322806350,1713337852233,-502.63850427,0.00054794,120]
[322806351,1713337852243,-500.0,0.00054794,120]
[322806352,1713337852252,-500.0,0.00054794,120]
[322806353,1713337852262,-168.247331,0.00054794,2]
[322806354,1713337852271,-162.375864,0.00054795,2]
[322806355,1713337852280,-153.0,0.00055029,60]
[322806356,1713337852290,-150.8642222,0.00055349,2]
[322806357,1713337852300,-1000.0,0.00058738,120]
[322806358,1713337852309,-558.436241,0.00060273,120]
[322806359,1713337852319,-500.0,0.00060273,120]
[322806360,1713337852328,-263.70429624,0.00060273,120]
[322806361,1713337852337,-504.12364732,0.00060273,120]
[322806362,1713337852346,-500.0,0.00060273,120]
[322806363,1713337852356,-503.53314267,0.00060273,120]
[322806364,1713337852366,-505.07144256,0.00060273,120]
[322806365,1713337852376,-500.0,0.00060273,120]
[322806366,1713337852386,-500.0,0.00060273,120]
[322806367,1713337852395,-500.0,0.00060273,120]
[322806368,1713337852404,-519.586884,0.00060273,120]
[322806369,1713337852414,-500.0,0.00060273,120]
[322806370,1713337852424,-500.0,0.00060273,120]
[322806371,1713337852433,-500.0,0.00060273,120]
[322806372,1713337852442,-500.0,0.00060273,120]
[322806373,1713337852453,-500.0,0.00060273,120]
[322806374,1713337852462,-500.0,0.00060273,120]
[322806375,1713337852556,-500.0,0.00060273,120]
[322806376,1713337852566,-506.89340841,0.00060273,120]
[322806377,1713337852576,-500.0,0.00060273,120]
[322806378,1713337852587,-500.0,0.00060273,120]
[322806379,1713337852597,-598.67369605,0.00060273,120]
[322806380,1713337852608,-504.25676664,0.00060273,120]
[322806381,1713337852618,-500.0,0.00060273,120]
[322806382,1713337852627,-164.00977262,0.00060273,120]
[322806383,1713337852637,-500.0,0.00060273,120]
[322806384,1713337852646,-500.0,0.00060273,120]
[322806385,1713337852656,-599.82400889,0.00060273,120]
[322806386,1713337852666,-500.0,0.00060273,120]
[322806387,1713337852675,-500.0,0.00060273,120]
[322806388,1713337852685,-500.0,0.00060273,120]
[322806389,1713337852694,-500.0,0.00060273,120]
[322806390,1713337852704,-500.0,0.00060273,120]
[322806391,1713337852713,-500.0,0.00060273,120]
[322806392,1713337852726,-500.0,0.00060273,120]
[322806393,1713337852735,-500.0,0.00060273,120]
[322806394,1713337852744,-516.98834852,0.00060273,120]
[322806395,1713337852754,-500.0,0.00060273,120]
[322806396,1713337852763,-500.0,0.00060273,120]
[322806397,1713337852773,-504.56639684,0.00060273,120]
[322806398,1713337852782,-500.0,0.00060273,120]
[322806399,1713337852791,-500.0,0.00060273,120]
[322806400,1713337852801,-505.27898147,0.00060273,120]
[322806401,1713337852810,-500.0,0.00060273,120]
[322806402,1713337852819,-500.0,0.00060273,120]
[322806403,1713337852828,-500.0,0.00060273,120]
[322806404,1713337852838,-504.52454078,0.00060273,120]
[322806405,1713337852847,-502.01950053,0.00060273,120]
[322806406,1713337852856,-500.0,0.00060273,120]
[322806407,1713337852865,-500.0,0.00060273,120]
[322806408,1713337852874,-500.0,0.00060273,120]
[322806409,1713337852883,-508.83767156,0.00060273,120]
[322806410,1713337852892,-500.0,0.00060273,120]
[322806411,1713337852902,-500.0,0.00060273,120]
[322806412,1713337852910,-500.0,0.00060273,120]
[322806413,1713337852920,-500.0,0.00060273,120]
[322806414,1713337852929,-500.0,0.00060273,120]
[322806415,1713337852938,-500.0,0.00060273,120]
[322806416,1713337852948,-1000.0,0.00060273,120]
[322806417,1713337852957,-500.0,0.00060273,120]
[322806418,1713337852966,-500.0,0.00060273,120]
[322806419,1713337852979,-500.0,0.00060273,120]
[322806420,1713337852988,-1403.52,0.00060273,120]
[322806421,1713337852997,-500.0,0.00060273,120]
[322806422,1713337853007,-500.0,0.00060273,120]